fUSD/lending_fUSD_20240301
["ID","MTS","AMOUNT","RATE_DAILY","PERIOD"]
[315925704,1709285453545,-500.0,0.00021917,2]
[315925705,1709285453553,-1595.17,0.00021917,2]
[315925706,1709285453562,-581.97,0.00021917,2]
[315925707,1709285453572,-500.0,0.00021917,2]
[315925708,1709285453582,-500.0,0.00021917,2]
[315925709,1709285453592,-500.0,0.00021917,2]
[315925710,1709285453601,-500.0,0.00021917,2]
[315925711,1709285453611,-500.0,0.00021917,2]
[315925712,1709285453620,-503.39220138,0.00021917,2]
[315925713,1709285453630,-706.08,0.00021917,2]
[315925714,1709285453639,-931.46,0.00021917,2]
[315925715,1709285453649,-2005.5,0.00021917,2]
[315925716,1709285453658,-500.0,0.00021917,2]
[315925717,1709285453668,-500.0,0.00021917,2]
[315925718,1709285453678,-500.0,0.00021917,2]
[315925719,1709285453687,-500.0,0.00021917,2]
[315925720,1709285453696,-500.0,0.00021917,2]
[315925721,1709285453706,-1009.77,0.00021917,2]
[315925722,1709285453715,-1227.69,0.00021917,2]
[315925723,1709285453725,-500.0,0.00021917,2]
[315925724,1709285453734,-500.0,0.00021917,2]
[315925725,1709285453743,-1378.19,0.00021917,2]
[315925726,1709285453752,-584.18,0.00021917,2]
[315925727,1709285453762,-534.38,0.00021917,2]
[315925728,1709285453771,-534.38,0.00021917,2]
[315925729,1709285453780,-500.0,0.00021917,2]
[315925730,1709285453790,-500.0,0.00021917,2]
[315925731,1709285453799,-534.38,0.00021917,2]
[315925732,1709285453808,-1351.12,0.00021917,2]
[315925733,1709285453817,-534.38,0.00021917,2]
[315925734,1709285453827,-534.38,0.00021917,2]
[315925735,1709285453836,-500.0,0.00021917,2]
[315925736,1709285453845,-500.0,0.00021917,2]
[315925737,1709285453854,-950.7,0.00021917,2]
[315925738,1709285453864,-500.0,0.00021917,2]
[315925739,1709285453873,-500.0,0.00021917,2]
[315925740,1709285453888,-500.0,0.00021917,2]
[315925741,1709285453909,-655.07,0.00021917,2]
[315925742,1709285453931,-500.0,0.00021917,2]
[315925743,1709285453950,-500.0,0.00021917,2]
[315925744,1709285453971,-1068.69,0.00021917,2]
[315925745,1709285453992,-500.0,0.00021917,2]
[315925746,1709285454013,-3729.72,0.00021917,2]
[315925747,1709285454035,-1127.26,0.00021917,2]
[315925748,1709285454055,-500.0,0.00021917,2]
[315925749,1709285454074,-4941.14,0.00021917,2]
[315925750,1709285454083,-500.0,0.00021917,2]
[315925751,1709285454093,-500.0,0.00021917,2]
[315925752,1709285454102,-814.36,0.00021917,2]
[315925753,1709285454112,-500.0,0.00021917,2]
[315925754,1709285454122,-500.0,0.00021917,2]
[315925755,1709285454131,-500.0,0.00021917,2]
[315925756,1709285454141,-601.35,0.00021917,2]
[315925757,1709285454150,-786.5,0.00021917,2]
[315925758,1709285454159,-500.0,0.00021917,2]
[315925759,1709285454169,-500.0,0.00021917,2]
[315925760,1709285454179,-500.0,0.00021917,2]
[315925761,1709285454189,-500.0,0.00021917,2]
[315925762,1709285454198,-2456.8,0.00021917,2]
[315925763,1709285454207,-500.0,0.00021917,2]
[315925764,1709285454216,-500.0,0.00021917,2]
[315925765,1709285454226,-1642.51,0.00021917,2]
[315925766,1709285454235,-500.0,0.00021917,2]
[315925767,1709285454244,-1012.66,0.00021917,2]
[315925768,1709285454253,-500.0,0.00021917,2]
[315925769,1709285454262,-2395.57,0.00021917,2]
[315925770,1709285454271,-500.0,0.00021917,2]
[315925771,1709285454280,-10881.13,0.00021917,2]
[315925772,1709285454288,-583.88,0.00021917,2]
[315925773,1709285454297,-500.0,0.00021917,2]
[315925774,1709285454307,-500.0,0.00021917,2]
[315925775,1709285454316,-500.0,0.00021917,2]
[315925776,1709285454326,-980.57,0.00021917,2]
[315925777,1709285454335,-500.0,0.00021917,2]
[315925778,1709285454344,-1725.68,0.00021917,2]
[315925779,1709285454354,-500.0,0.00021917,2]
[315925780,1709285454363,-500.0,0.00021917,2]
[315925781,1709285454373,-500.0,0.00021917,2]
[315925782,1709285454382,-500.0,0.00021917,2]
[315925783,1709285454391,-500.0,0.00021917,2]
[315925784,1709285454400,-2065.44,0.00021917,2]
[315925785,1709285454409,-500.0,0.00021917,2]
[315925786,1709285454418,-500.0,0.00021917,2]
[315925787,1709285454427,-666.33,0.00021917,2]
[315925788,1709285454436,-519.67,0.00021917,2]
[315925789,1709285454446,-815.28,0.00021917,2]
[315925790,1709285454454,-1975.51,0.00021917,2]
[315925791,1709285454463,-827.96,0.00021917,2]
[315925792,1709285454472,-500.0,0.00021917,2]
[315925793,1709285454484,-500.0,0.00021917,2]
[315925794,1709285454493,-500.0,0.00021917,2]
[315925795,1709285454504,-500.0,0.00021917,2]
[315925796,1709285454513,-1022.84,0.00021917,2]
[315925797,1709285454523,-500.0,0.00021917,2]
[315925798,1709285454532,-500.0,0.00021917,2]
[315925799,1709285454541,-500.0,0.00021917,2]
[315925800,1709285454550,-510.55,0.00021917,2]
[315925801,1709285454559,-500.0,0.00021917,2]
[315925802,1709285454569,-1534.73,0.00021917,2]
[315925803,1709285454578,-1306.25,0.00021917,2]
[315925804,1709285454590,-500.0,0.00021917,2]
[315925805,1709285454599,-1718.11,0.00021917,2]
[315925806,1709285454608,-970.55,0.00021917,2]
[315925807,1709285454617,-500.0,0.00021917,2]
[315925808,1709285454626,-769.93,0.00021917,2]
[315925809,1709285454635,-500.0,0.00021917,2]
[315925810,1709285454644,-4015.41,0.00021917,2]
[315925811,1709285454653,-578.50445432,0.00021917,2]
[315925812,1709285454662,-500.0,0.00021917,2]
[315925813,1709285454671,-505.41597409,0.00021917,2]
[315925814,1709285454681,-592.93,0.00021917,2]
[315925815,1709285454691,-2052.07,0.00021917,2]
[315925816,1709285454700,-500.0,0.00021917,2]
[315925817,1709285454709,-1043.82,0.00021917,2]
[315925818,1709285454718,-500.0,0.00021917,2]
[315925819,1709285454727,-172.23961735,0.00021917,2]
[315925820,1709285454737,-500.0,0.00021917,2]
[315925821,1709285454746,-918.82,0.00021917,2]
[315925822,1709285454755,-660.91,0.00021917,2]
[315925823,1709285454764,-500.0,0.00021917,2]
[315925824,1709285454774,-500.0,0.00021917,2]
[315925825,1709285454783,-5293.02,0.00021917,2]
[315925826,1709285454793,-641.12,0.00021917,2]
[315925827,1709285454804,-500.0,0.00021917,2]
[315925828,1709285454813,-521.12,0.00021917,2]
[315925829,1709285454823,-500.0,0.00021917,2]
[315925830,1709285454832,-704.12,0.00021917,2]
[315925831,1709285454843,-3231.5,0.00021917,2]
[315925832,1709285454853,-7115.19,0.00021917,2]
[315925833,1709285454862,-500.0,0.00021917,2]
[315925834,1709285454872,-500.0,0.00021917,2]
[315925835,1709285454881,-500.0,0.00021917,2]
[315925836,1709285454890,-953.94,0.00021917,2]
[315925837,1709285454900,-1731.73,0.00021917,2]
[315925838,1709285454909,-1070.31,0.00021917,2]
[315925839,1709285454919,-680.45,0.00021917,2]
[315925840,1709285454928,-7630.85,0.00021917,2]
[315925841,1709285454937,-600.45,0.00021917,2]
[315925842,1709285454947,-500.0,0.00021917,2]
[315925843,1709285454956,-506.42370897,0.00021917,2]
[315925844,1709285454965,-1265.84,0.00021917,2]
[315925845,1709285454974,-743.67,0.00021917,2]
[315925846,1709285454984,-500.0,0.00021917,2]
[315925847,1709285454993,-500.0,0.00021917,2]
[315925848,1709285455003,-2202.72,0.00021917,2]
[315925849,1709285455012,-2151.83,0.00021917,2]
[315925850,1709285455021,-1173.94,0.00021917,2]
[315925851,1709285455030,-2822.95,0.00021917,2]
[315925852,1709285455039,-500.0,0.00021917,2]
[315925853,1709285455049,-959.84,0.00021917,2]
[315925854,1709285455058,-500.0,0.00021917,2]
[315925855,1709285455068,-500.0,0.00021917,2]
[315925856,1709285455077,-500.0,0.00021917,2]
[315925857,1709285455087,-1074.23,0.00021917,2]
[315925858,1709285455096,-2686.62,0.00021917,2]
[315925859,1709285455105,-500.0,0.00021917,2]
[315925860,1709285455114,-716.66,0.00021917,2]
[315925861,1709285455123,-500.0,0.00021917,2]
[315925862,1709285455133,-500.0,0.00021917,2]
[315925863,1709285455142,-1400.7,0.00021917,2]
[315925864,1709285455151,-965.69,0.00021917,2]
[315925865,1709285455160,-2486.57115612,0.00021917,2]
[315925866,1709285455892,-408.1979072,0.00021917,2]
[315925867,1709285493506,1500.9209624,0.00028,30]
[315925870,1709285800293,-155.0,0.00019597,2]
[315925871,1709285800316,-208.0,0.00019598,2]
[315925872,1709285800338,-350.0,0.0002,3]
[315925873,1709285800360,-250.0,0.00020156,2]
[315925874,1709285800382,-988.26,0.00020184,2]
[315925875,1709285800404,-953.45,0.00020715,2]
[315925876,1709285800425,-300.0,0.00020715,2]
[315925877,1709285800446,-150.0,0.00020715,2]
[315925878,1709285800468,-96645.29,0.00020716,2]
[315925879,1709285801071,-62472.6924,0.00020716,2]
[315925880,1709285801094,-1802.62,0.00020799,2]
[315925881,1709285801116,-4199.77911278,0.00020806,2]
[315925882,1709285801139,-31524.90848722,0.00020816,2]
[315925883,1709285802012,-68475.09151278,0.00020816,2]
[315925884,1709285802036,-31524.90848722,0.00020816,2]
[315925885,1709285802925,-250.0,0.00020231,2]
[315925886,1709285802948,-99750.0,0.00020816,2]
[315925887,1709285837475,303323.86465943,0.00025,120]
[315925888,1709285837501,300000.0,0.00025,120]
[315925889,1709285837525,634484.53846903,0.00025,120]
[315925894,1709285995777,16778.55222418,0.0002511,120]
[315925895,1709286020062,4071.44777582,0.00025,120]
[315925896,1709286063727,20850.0,0.00024,60]
[315925897,1709286075835,10000.0,0.00024,60]
[315925898,1709286108051,20918.79,0.00024,60]
[315925899,1709286164735,-150.0,0.00018597,2]
[315925917,1709286632236,-155.0,0.00017597,2]
[315925920,1709286632247,-208.0,0.00017598,2]
[315925921,1709286632257,-924.13,0.0001821,2]
[315925922,1709286632267,-415.67691263,0.00018597,2]
[315925923,1709286632277,-166.4697437,0.00020002,2]
[315925924,1709286632287,-1201.74,0.00020019,2]
[315925925,1709286632298,-250.0,0.0002002,2]
[315925926,1709286632309,-200.0,0.00020034,2]
[315925927,1709286632320,-172.91,0.00020046,2]
[315925928,1709286632332,-150.0,0.00020083,2]
[315925929,1709286632343,-9727.42891147,0.00020084,2]
[315925930,1709286632359,-14172.57108853,0.00020084,2]
[315925931,1709286632375,-250.0,0.00020103,2]
[315925932,1709286632386,-289.21,0.00020103,2]
[315925933,1709286632396,-162.38,0.00020111,2]
[315925934,1709286632406,-250.0,0.00020157,2]
[315925935,1709286632416,-1353.65,0.00020194,2]
[315925936,1709286632426,-6705.64,0.00020194,2]
[315925937,1709286632435,-150.99,0.00020194,2]
[315925938,1709286632445,-1284.3,0.00020194,2]
[315925939,1709286632456,-150.0,0.00020219,2]
[315925940,1709286632469,-166.46974367,0.00020426,2]
[315925941,1709286632486,-172.23,0.00020441,2]
[315925942,1709286632496,-356.05,0.00020451,10]
[315925943,1709286632506,-169.73,0.00020455,2]
[315925944,1709286632515,-1000.0,0.00020473,2]
[315925945,1709286632647,-924.13,0.00020474,2]
[315925946,1709286632657,-499.99,0.00020492,2]
[315925947,1709286632666,-800.0,0.0002056,2]
[315925948,1709286632676,-4906.2587,0.00020616,2]
[315925949,1709286632684,-520.37,0.00020714,2]
[315925950,1709286632694,-1227.036,0.00020716,2]
[315925951,1709286632704,-1000.0,0.0002077,2]
[315925952,1709286632714,-520.37,0.00020771,2]
[315925953,1709286632724,-5463.38047131,0.00020815,2]
[315925954,1709286632734,-2167.84,0.00020815,2]
[315925955,1709286632743,-72785.65481278,0.00020816,2]
[315925956,1709286632752,-1000.0,0.00020816,2]
[315925957,1709286632762,-12424.5232,0.00020816,2]
[315925958,1709286632771,-520.37,0.00020828,2]
[315925959,1709286632780,-166.46974367,0.0002085,2]
[315925960,1709286632789,-208.0,0.00020859,6]
[315925961,1709286632799,-520.37,0.00020884,2]
[315925962,1709286632809,-999.99,0.00020909,2]
[315925963,1709286632818,-691.66,0.00020909,2]
[315925964,1709286632828,-1212.77909687,0.00020914,2]
[315925965,1709286632839,-565.42749827,0.00020914,2]
[315925966,1709286632849,-236.11189211,0.00020914,2]
[315925967,1709286632859,-155.43749372,0.00020915,2]
[315925968,1709286632868,-1257.61,0.00020915,2]
[315925969,1709286632879,-178.0,0.00020917,2]
[315925970,1709286632889,-520.37,0.00020941,2]
[315925971,1709286632898,-520.37,0.00020998,2]
[315925972,1709286632907,-711.390726,0.00021,2]
[315925973,1709286632918,-520.37,0.00021055,2]
[315925974,1709286632928,-1149.34,0.00021096,2]
[315925975,1709286632937,-520.37,0.00021112,2]
[315925976,1709286632946,-169.62,0.0002112,2]
[315925977,1709286632955,-520.37,0.00021168,2]
[315925978,1709286632964,-200.0,0.00021187,2]
[315925979,1709286632974,-520.37,0.00021225,2]
[315925980,1709286632983,-166.46974367,0.00021274,2]
[315925981,1709286632992,-520.37,0.00021282,2]
[315925982,1709286633001,-520.37,0.00021339,2]
[315925983,1709286633011,-1058.138783,0.00021378,2]
[315925984,1709286633020,-242.68,0.0002138,2]
[315925985,1709286633029,-200.0,0.00021387,2]
[315925986,1709286633038,-520.37,0.00021396,2]
[315925987,1709286633047,-520.37,0.00021453,2]
[315925988,1709286633056,-172.23,0.00021463,2]
[315925989,1709286633065,-178.0,0.00021465,2]
[315925990,1709286633075,-254.62313764,0.0002147,2]
[315925991,1709286633084,-150.0,0.0002147,2]
[315925992,1709286633093,-300.0,0.0002147,2]
[315925993,1709286633103,-260.73618207,0.0002147,2]
[315925994,1709286633112,-167.15,0.00021475,2]
[315925995,1709286633122,-2392.88555156,0.00021483,6]
[315925996,1709286633131,-2392.88555156,0.00021486,6]
[315925997,1709286633140,-2392.88555156,0.00021489,6]
[315925998,1709286633150,-2392.88555156,0.00021493,6]
[315925999,1709286633159,-150.0,0.000215,2]
[315926000,1709286633169,-500.0,0.000215,2]
[315926001,1709286633178,-520.37,0.00021509,2]
[315926002,1709286633187,-520.37,0.00021566,2]
[315926003,1709286633196,-1395.1271853,0.00021571,2]
[315926004,1709286633206,-200.0,0.00021587,2]
[315926005,1709286633215,-365.64633018,0.000216,2]
[315926006,1709286633225,-1326.96381605,0.00021619,2]
[315926007,1709286633234,-520.37,0.00021623,2]
[315926008,1709286633243,-520.37,0.0002168,2]
[315926009,1709286633252,-1044.49,0.00021687,2]
[315926010,1709286633262,-200000.0,0.00021697,2]
[315926011,1709286633271,-3144.0,0.00021698,2]
[315926012,1709286633280,-150.0,0.00021698,2]
[315926013,1709286633290,-150.0,0.00021698,2]
[315926014,1709286633299,-151.98417,0.00021698,2]
[315926015,1709286633309,-166.46974367,0.00021698,2]
[315926016,1709286633317,-151.69,0.00021699,2]
[315926017,1709286633326,-150.0,0.00021699,2]
[315926018,1709286633336,-413.8,0.00021699,2]
[315926019,1709286633345,-150.0,0.00021699,2]
[315926020,1709286633354,-424.53,0.00021699,2]
[315926021,1709286633364,-5030.13710175,0.000217,2]
[315926022,1709286633373,-520.37,0.00021737,2]
[315926023,1709286633382,-200.0,0.00021787,2]
[315926024,1709286633391,-520.37,0.00021793,2]
[315926025,1709286633400,-500.0,0.00021817,2]
[315926026,1709286633419,-5512.86460347,0.00021817,2]
[315926027,1709286633430,-152.04254933,0.00021817,2]
[315926028,1709286633439,-158.80384652,0.00021817,2]
[315926029,1709286633448,-1326.96381605,0.00021832,2]
[315926030,1709286633458,-1395.1271853,0.00021895,2]
[315926031,1709286633467,-261.64161127,0.00021898,2]
[315926032,1709286633476,-156.55402972,0.00021898,2]
[315926033,1709286633485,-204.66369798,0.00021899,2]
[315926034,1709286633495,-3841.85840613,0.00021899,2]
[315926035,1709286633505,-750.0,0.000219,2]
[315926036,1709286633514,-1044.49,0.00021907,2]
[315926037,1709286633523,-1044.49,0.00021907,2]
[315926038,1709286633533,-192.13666623,0.00021907,2]
[315926039,1709286633543,-500.0,0.00021916,2]
[315926040,1709286633552,-500.0,0.00021916,2]
[315926041,1709286633562,-500.0,0.00021916,2]
[315926042,1709286633571,-500.0,0.00021916,2]
[315926043,1709286633581,-500.0,0.00021916,2]
[315926044,1709286633590,-393.47305663,0.00021916,2]
[315926045,1709286633600,-500.0,0.00021916,2]
[315926046,1709286633608,-500.0,0.00021916,2]
[315926047,1709286633618,-410.09831107,0.00021916,2]
[315926048,1709286633627,-500.0,0.00021916,2]
[315926049,1709286633636,-500.0,0.00021916,2]
[315926050,1709286633645,-500.0,0.00021916,2]
[315926051,1709286633655,-500.0,0.00021916,2]
[315926052,1709286633664,-500.0,0.00021916,2]
[315926053,1709286633673,-250.0,0.00021916,2]
[315926054,1709286633682,-500.0,0.00021916,2]
[315926055,1709286633692,-500.0,0.00021916,2]
[315926056,1709286633701,-500.0,0.00021916,2]
[315926057,1709286633710,-500.0,0.00021916,2]
[315926058,1709286633719,-500.0,0.00021916,2]
[315926059,1709286633729,-500.0,0.00021916,2]
[315926060,1709286633738,-500.0,0.00021916,2]
[315926061,1709286633747,-500.0,0.00021916,2]
[315926062,1709286633757,-62167.76760826,0.00021917,4]
[315926063,1709286633767,-200.0,0.00021917,2]
[315926064,1709286633776,-200.0,0.00021917,2]
[315926065,1709286633785,-200.0,0.00021917,2]
[315926066,1709286633794,-153.0,0.00021917,2]
[315926067,1709286633804,-500.0,0.00021917,2]
[315926068,1709286633814,-527.45740691,0.00021917,2]
[315926069,1709286633824,-500.0,0.00021917,2]
[315926070,1709286633834,-500.0,0.00021917,2]
[315926071,1709286633844,-500.0,0.00021917,2]
[315926072,1709286633854,-500.0,0.00021917,2]
[315926073,1709286633863,-500.0,0.00021917,2]
[315926074,1709286633873,-500.0,0.00021917,2]
[315926075,1709286633882,-500.0,0.00021917,2]
[315926076,1709286633891,-500.0,0.00021917,2]
[315926077,1709286633901,-500.0,0.00021917,2]
[315926078,1709286633910,-500.0,0.00021917,2]
[315926079,1709286633920,-500.0,0.00021917,2]
[315926080,1709286633930,-500.0,0.00021917,2]
[315926081,1709286633939,-500.0,0.00021917,2]
[315926082,1709286633948,-500.0,0.00021917,2]
[315926083,1709286633958,-500.0,0.00021917,2]
[315926084,1709286633972,-500.0,0.00021917,2]
[315926085,1709286633982,-500.0,0.00021917,2]
[315926086,1709286633991,-500.0,0.00021917,2]
[315926087,1709286634000,-500.0,0.00021917,2]
[315926088,1709286634010,-723.88,0.00021917,2]
[315926089,1709286634019,-570.75007765,0.00021917,2]
[315926090,1709286634029,-500.0,0.00021917,2]
[315926091,1709286634038,-500.0,0.00021917,2]
[315926092,1709286634047,-500.0,0.00021917,2]
[315926093,1709286634058,-500.0,0.00021917,2]
[315926094,1709286634067,-500.0,0.00021917,2]
[315926095,1709286634077,-500.0,0.00021917,2]
[315926096,1709286634086,-500.0,0.00021917,2]
[315926097,1709286634096,-500.0,0.00021917,2]
[315926098,1709286634105,-500.0,0.00021917,2]
[315926099,1709286634114,-500.0,0.00021917,2]
[315926100,1709286634123,-500.0,0.00021917,2]
[315926101,1709286634133,-500.0,0.00021917,2]
[315926102,1709286634145,-500.0,0.00021917,2]
[315926103,1709286634154,-500.0,0.00021917,2]
[315926104,1709286634164,-500.0,0.00021917,2]
[315926105,1709286634174,-500.0,0.00021917,2]
[315926106,1709286634183,-500.0,0.00021917,2]
[315926107,1709286634193,-500.0,0.00021917,2]
[315926108,1709286634202,-500.0,0.00021917,2]
[315926109,1709286634212,-227.24843096,0.00021917,2]
[315926110,1709286634221,-500.0,0.00021917,2]
[315926111,1709286634231,-500.0,0.00021917,2]
[315926112,1709286634240,-369.55313522,0.00021917,2]
[315926113,1709286634250,-500.0,0.00021917,2]
[315926114,1709286634259,-500.0,0.00021917,2]
[315926115,1709286634268,-500.0,0.00021917,2]
[315926116,1709286634277,-500.0,0.00021917,2]
[315926117,1709286634286,-500.0,0.00021917,2]
[315926118,1709286634296,-500.0,0.00021917,2]
[315926119,1709286634305,-500.0,0.00021917,2]
[315926120,1709286634316,-500.0,0.00021917,2]
[315926121,1709286634326,-500.0,0.00021917,2]
[315926122,1709286634337,-500.0,0.00021917,2]
[315926123,1709286634346,-500.0,0.00021917,2]
[315926124,1709286634355,-500.0,0.00021917,2]
[315926125,1709286634365,-500.0,0.00021917,2]
[315926126,1709286634375,-500.0,0.00021917,2]
[315926127,1709286634384,-516.73171324,0.00021917,2]
[315926128,1709286634394,-500.0,0.00021917,2]
[315926129,1709286634403,-500.0,0.00021917,2]
[315926130,1709286634413,-509.93,0.00021917,2]
[315926131,1709286634422,-500.0,0.00021917,2]
[315926132,1709286634431,-500.0,0.00021917,2]
[315926133,1709286634440,-500.0,0.00021917,2]
[315926134,1709286634449,-542.27906451,0.00021917,2]
[315926135,1709286634459,-500.0,0.00021917,2]
[315926136,1709286634469,-500.0,0.00021917,2]
[315926137,1709286634479,-500.0,0.00021917,2]
[315926138,1709286634489,-500.0,0.00021917,2]
[315926139,1709286634498,-500.0,0.00021917,2]
[315926140,1709286634508,-851.93,0.00021917,2]
[315926141,1709286634517,-500.0,0.00021917,2]
[315926142,1709286634526,-524.52,0.00021917,2]
[315926143,1709286634535,-500.0,0.00021917,2]
[315926144,1709286634545,-500.0,0.00021917,2]
[315926145,1709286634554,-510.63071061,0.00021917,2]
[315926146,1709286634565,-500.0,0.00021917,2]
[315926147,1709286634575,-500.0,0.00021917,2]
[315926148,1709286634584,-500.0,0.00021917,2]
[315926149,1709286634593,-809.74,0.00021917,2]
[315926150,1709286634603,-571.94888657,0.00021917,2]
[315926151,1709286634612,-500.0,0.00021917,2]
[315926152,1709286634621,-500.0,0.00021917,2]
[315926154,1709286634631,-500.0,0.00021917,2]
[315926156,1709286634640,-628.03,0.00021917,2]
[315926157,1709286634649,-642.93,0.00021917,2]
[315926158,1709286634667,-500.0,0.00021917,2]
[315926160,1709286634676,-500.0,0.00021917,2]
[315926162,1709286634685,-891.99,0.00021917,2]
[315926164,1709286634695,-500.0,0.00021917,2]
[315926166,1709286634704,-500.0,0.00021917,2]
[315926168,1709286634713,-500.0,0.00021917,2]
[315926170,1709286634722,-500.0,0.00021917,2]
[315926172,1709286634731,-587.77,0.00021917,2]
[315926174,1709286634740,-500.0,0.00021917,2]
[315926176,1709286634749,-509.94531405,0.00021917,2]
[315926178,1709286634759,-500.0,0.00021917,2]
[315926180,1709286634768,-500.0,0.00021917,2]
[315926182,1709286634777,-500.0,0.00021917,2]
[315926184,1709286634786,-549.68,0.00021917,2]
[315926186,1709286634796,-533.48281967,0.00021917,2]
[315926188,1709286634805,-500.0,0.00021917,2]
[315926190,1709286634817,-500.0,0.00021917,2]
[315926192,1709286634827,-568.16,0.00021917,2]
[315926194,1709286634838,-928.5,0.00021917,2]
[315926196,1709286634847,-500.0,0.00021917,2]
[315926198,1709286634857,-500.0,0.00021917,2]
[315926200,1709286634866,-850.67,0.00021917,2]
[315926202,1709286634877,-505.51170149,0.00021917,2]
[315926204,1709286634886,-500.0,0.00021917,2]
[315926206,1709286634895,-500.0,0.00021917,2]
[315926208,1709286634904,-500.0,0.00021917,2]
[315926210,1709286634914,-500.0,0.00021917,2]
[315926212,1709286634923,-641.12,0.00021917,2]
[315926214,1709286634933,-500.0,0.00021917,2]
[315926216,1709286634943,-500.0,0.00021917,2]
[315926218,1709286634952,-500.0,0.00021917,2]
[315926219,1709286634961,-566.76,0.00021917,2]
[315926220,1709286634971,-530.78682286,0.00021917,2]
[315926221,1709286634980,-1478.85,0.00021917,2]
[315926222,1709286634989,-500.0,0.00021917,2]
[315926223,1709286634999,-500.0,0.00021917,2]
[315926224,1709286635009,-500.0,0.00021917,2]
[315926225,1709286635019,-500.0,0.00021917,2]
[315926226,1709286635029,-500.0,0.00021917,2]
[315926227,1709286635040,-632.23241812,0.00021917,2]
[315926228,1709286635050,-500.0,0.00021917,2]
[315926229,1709286635064,-597.0,0.00021917,2]
[315926231,1709286635074,-500.0,0.00021917,2]
[315926233,1709286635085,-500.0,0.00021917,2]
[315926235,1709286635095,-500.0,0.00021917,2]
[315926237,1709286635105,-500.0,0.00021917,2]
[315926239,1709286635115,-500.0,0.00021917,2]
[315926241,1709286635125,-560.72,0.00021917,2]
[315926243,1709286635135,-686.8,0.00021917,2]
[315926245,1709286635146,-545.6,0.00021917,2]
[315926247,1709286635157,-500.0,0.00021917,2]
[315926249,1709286635168,-500.0,0.00021917,2]
[315926250,1709286635178,-500.0,0.00021917,2]
[315926252,1709286635188,-500.0,0.00021917,2]
[315926254,1709286635198,-500.0,0.00021917,2]
[315926256,1709286635208,-500.0,0.00021917,2]
[315926258,1709286635218,-683.77,0.00021917,2]
[315926260,1709286635228,-500.0,0.00021917,2]
[315926262,1709286635239,-500.0,0.00021917,2]
[315926264,1709286635249,-500.0,0.00021917,2]
[315926267,1709286635259,-500.0,0.00021917,2]
[315926268,1709286635269,-500.0,0.00021917,2]
[315926271,1709286635280,-500.0,0.00021917,2]
[315926272,1709286635289,-500.0,0.00021917,2]
[315926274,1709286635299,-500.0,0.00021917,2]
[315926276,1709286635309,-610.95,0.00021917,2]
[315926279,1709286635318,-500.0,0.00021917,2]
[315926281,1709286635328,-652.48,0.00021917,2]
[315926283,1709286635338,-610.61,0.00021917,2]
[315926285,1709286635347,-552.49133057,0.00021917,2]
[315926286,1709286635357,-500.0,0.00021917,2]
[315926289,1709286635366,-500.0,0.00021917,2]
[315926291,1709286635376,-500.0,0.00021917,2]